[Event "*** Titled Tuesday Blitz"]
[Site "Chess.com"]
[Date "2020.04.14"]
[Round "7"]
[White "elohunter1999"]
[Black "pirulillo"]
[Result "1-0"]
[WhiteElo "2482"]
[BlackElo "2194"]
[TimeControl "180+1"]
[EndTime "11:11:57 PDT"]
[Termination "elohunter1999 won by resignation"]

1. e4 {[%clk 0:03:00.9]} 1... c5 {[%clk 0:02:57.1]} 2. Nf3 {[%clk 0:02:59.9]}
2... e6 {[%clk 0:02:56.8]} 3. d4 {[%clk 0:03:00.1]} 3... cxd4 {[%clk 0:02:57.2]}
4. Nxd4 {[%clk 0:03:01]} 4... Nf6 {[%clk 0:02:57.3]} 5. Nc3 {[%clk 0:03:01]}
5... Nc6 {[%clk 0:02:57.8]} 6. Nxc6 {[%clk 0:03:01.4]} 6... dxc6 {[%clk
0:02:58.4]} 7. e5 {[%clk 0:03:01.7]} 7... Qxd1+ {[%clk 0:02:55.3]} 8. Nxd1
{[%clk 0:02:59.7]} 8... Nd7 {[%clk 0:02:52.1]} 9. f4 {[%clk 0:02:51]} 9... Bc5
{[%clk 0:02:51.4]} 10. Be3 {[%clk 0:02:49.8]} 10... Ke7 {[%clk 0:02:35.5]} 11.
Bd3 {[%clk 0:02:46.8]} 11... a5 {[%clk 0:02:31.4]} 12. Bxc5+ {[%clk 0:02:43.2]}
12... Nxc5 {[%clk 0:02:30.7]} 13. Nf2 {[%clk 0:02:44.1]} 13... b6 {[%clk
0:02:26.1]} 14. O-O-O {[%clk 0:02:37.6]} 14... Ba6 {[%clk 0:02:22.7]} 15. Bxa6
{[%clk 0:02:36]} 15... Rxa6 {[%clk 0:02:23.6]} 16. Rd6 {[%clk 0:02:35.9]} 16...
Rc8 {[%clk 0:02:19.8]} 17. Rhd1 {[%clk 0:02:34.5]} 17... Ra7 {[%clk 0:02:15.9]}
18. c3 {[%clk 0:02:13.6]} 18... Rcc7 {[%clk 0:01:46.2]} 19. Kc2 {[%clk
0:02:08.8]} 19... Nb7 {[%clk 0:01:41.6]} 20. Ne4 {[%clk 0:02:05.8]} 20... f5
{[%clk 0:01:33]} 21. Ng5 {[%clk 0:01:58.7]} 21... Nc5 {[%clk 0:01:24.2]} 22. b4
{[%clk 0:01:48.6]} 22... axb4 {[%clk 0:01:23]} 23. cxb4 {[%clk 0:01:47.7]} 23...
h6 {[%clk 0:01:21.6]} 24. bxc5 {[%clk 0:01:47.1]} 24... hxg5 {[%clk 0:01:00.3]}
25. cxb6 {[%clk 0:01:46.3]} 25... Rxa2+ {[%clk 0:00:59.8]} 26. Kb3 {[%clk
0:01:43.3]} 26... Rb7 {[%clk 0:00:52.4]} 27. Kxa2 {[%clk 0:01:42.6]} 27... Rxb6
{[%clk 0:00:52.5]} 28. Rd7+ {[%clk 0:01:40.3]} 28... Kf8 {[%clk 0:00:51.9]} 29.
fxg5 {[%clk 0:01:41.2]} 29... Rb8 {[%clk 0:00:47.1]} 30. Rd8+ {[%clk 0:01:39.2]}
30... Rxd8 {[%clk 0:00:45.8]} 31. Rxd8+ {[%clk 0:01:40.1]} 31... Kf7 {[%clk
0:00:45.6]} 32. h4 {[%clk 0:01:38.3]} 1-0

[Event "*** Titled Tuesday Blitz"]
[Site "Chess.com"]
[Date "2020.04.14"]
[Round "7"]
[White "Superfelix"]
[Black "GMKrikor"]
[Result "1-0"]
[WhiteElo "2551"]
[BlackElo "2684"]
[TimeControl "180+1"]
[EndTime "11:11:59 PDT"]
[Termination "Superfelix won by resignation"]

1. e4 {[%clk 0:03:00.9]} 1... c5 {[%clk 0:02:53.1]} 2. Nf3 {[%clk 0:02:58.5]}
2... g6 {[%clk 0:02:53.5]} 3. c3 {[%clk 0:02:56.2]} 3... d5 {[%clk 0:02:52.7]}
4. exd5 {[%clk 0:02:55.6]} 4... Qxd5 {[%clk 0:02:53.6]} 5. d4 {[%clk 0:02:55.9]}
5... Bg7 {[%clk 0:02:50.1]} 6. Na3 {[%clk 0:02:54.2]} 6... cxd4 {[%clk 0:02:49]}
7. Nb5 {[%clk 0:02:54]} 7... Na6 {[%clk 0:02:48.2]} 8. Nbxd4 {[%clk 0:02:51]}
8... Nf6 {[%clk 0:02:46.6]} 9. Be2 {[%clk 0:02:46]} 9... O-O {[%clk 0:02:45.7]}
10. O-O {[%clk 0:02:46.3]} 10... Bd7 {[%clk 0:02:28.3]} 11. Bf4 {[%clk
0:02:36.7]} 11... Nc5 {[%clk 0:02:09.2]} 12. Ne5 {[%clk 0:02:36]} 12... Bf5
{[%clk 0:01:35.9]} 13. Bc4 {[%clk 0:02:18.4]} 13... Qe4 {[%clk 0:01:25.6]} 14.
Bg3 {[%clk 0:02:18.1]} 14... Bg4 {[%clk 0:00:38.5]} 15. f3 {[%clk 0:02:00.2]}
15... Qe3+ {[%clk 0:00:36.4]} 16. Kh1 {[%clk 0:02:00.2]} 16... Bc8 {[%clk
0:00:30.3]} 17. Re1 {[%clk 0:01:58.2]} 17... Qg5 {[%clk 0:00:28]} 18. Nxf7
{[%clk 0:01:39.6]} 18... Rxf7 {[%clk 0:00:24.5]} 19. Bxf7+ {[%clk 0:01:35.7]}
19... Kxf7 {[%clk 0:00:21.4]} 20. Re5 {[%clk 0:01:36]} 20... Nfe4 {[%clk
0:00:17.6]} 1-0

[Event "*** Titled Tuesday Blitz"]
[Site "Chess.com"]
[Date "2020.04.14"]
[Round "7"]
[White "ARMQUEEN"]
[Black "googlegoom"]
[Result "1-0"]
[WhiteElo "2273"]
[BlackElo "2486"]
[TimeControl "180+1"]
[EndTime "11:12:02 PDT"]
[Termination "ARMQUEEN won by resignation"]

1. e4 {[%clk 0:03:00.9]} 1... c5 {[%clk 0:02:57.2]} 2. Nc3 {[%clk 0:03:00]} 2...
Nc6 {[%clk 0:02:57.5]} 3. Bb5 {[%clk 0:02:56.4]} 3... Nf6 {[%clk 0:02:50.9]} 4.
Nf3 {[%clk 0:02:52.5]} 4... e6 {[%clk 0:02:40.2]} 5. Bxc6 {[%clk 0:02:51]} 5...
dxc6 {[%clk 0:02:34.8]} 6. d3 {[%clk 0:02:50.8]} 6... Be7 {[%clk 0:02:34.3]} 7.
h3 {[%clk 0:02:49.9]} 7... b6 {[%clk 0:02:28.3]} 8. Be3 {[%clk 0:02:47]} 8... h6
{[%clk 0:02:23.7]} 9. Qd2 {[%clk 0:02:46.5]} 9... a5 {[%clk 0:02:20.9]} 10. Nh2
{[%clk 0:02:44]} 10... Ba6 {[%clk 0:02:18.6]} 11. b3 {[%clk 0:02:43.3]} 11...
Nd7 {[%clk 0:02:10.8]} 12. O-O {[%clk 0:02:41.8]} 12... e5 {[%clk 0:02:01.9]}
13. f4 {[%clk 0:02:40.7]} 13... exf4 {[%clk 0:02:01.5]} 14. Bxf4 {[%clk
0:02:40.7]} 14... O-O {[%clk 0:01:59.3]} 15. Ng4 {[%clk 0:02:36.1]} 15... Nf6
{[%clk 0:01:55]} 16. Ne3 {[%clk 0:02:29.9]} 16... Bc8 {[%clk 0:01:44.1]} 17.
Rae1 {[%clk 0:02:26.7]} 17... Qd4 {[%clk 0:01:22.4]} 18. Kh1 {[%clk 0:02:24.3]}
18... Be6 {[%clk 0:01:02.2]} 19. Ne2 {[%clk 0:02:18.6]} 19... Qd7 {[%clk
0:01:01.8]} 20. Ng3 {[%clk 0:02:12]} 20... Rad8 {[%clk 0:00:57]} 21. Nef5 {[%clk
0:02:10.5]} 21... Rfe8 {[%clk 0:00:49.7]} 22. Bxh6 {[%clk 0:02:07.7]} 22... Bf8
{[%clk 0:00:45.6]} 23. Bxg7 {[%clk 0:02:03.1]} 23... Bxg7 {[%clk 0:00:43.8]} 24.
Qg5 {[%clk 0:02:02.7]} 24... Bxf5 {[%clk 0:00:40.4]} 25. Nxf5 {[%clk 0:02:02.1]}
25... Nh5 {[%clk 0:00:36.8]} 26. Qxh5 {[%clk 0:02:00.8]} 26... Re6 {[%clk
0:00:37]} 27. Re3 {[%clk 0:01:57.9]} 27... Rg6 {[%clk 0:00:35.5]} 28. Rg3 {[%clk
0:01:57.2]} 28... Rxg3 {[%clk 0:00:34.6]} 29. Nxg3 {[%clk 0:01:56.7]} 29... Qe6
{[%clk 0:00:33.5]} 30. Qg5 {[%clk 0:01:56]} 30... Rd7 {[%clk 0:00:31.5]} 31. Nf5
{[%clk 0:01:53]} 31... Qg6 {[%clk 0:00:28.1]} 32. Ne7+ {[%clk 0:01:53.1]} 1-0

[Event "*** Titled Tuesday Blitz"]
[Site "Chess.com"]
[Date "2020.04.14"]
[Round "7"]
[White "EugeneRougon"]
[Black "Gabix_94"]
[Result "0-1"]
[WhiteElo "2691"]
[BlackElo "2862"]
[TimeControl "180+1"]
[EndTime "11:12:06 PDT"]
[Termination "Gabix_94 won by resignation"]

1. e4 {[%clk 0:03:00.9]} 1... c5 {[%clk 0:02:53.4]} 2. Nf3 {[%clk 0:03:01]} 2...
e6 {[%clk 0:02:53.6]} 3. g3 {[%clk 0:03:00.9]} 3... Nc6 {[%clk 0:02:53.4]} 4.
Bg2 {[%clk 0:03:01.1]} 4... Nf6 {[%clk 0:02:53.9]} 5. Nc3 {[%clk 0:03:00.5]}
5... d6 {[%clk 0:02:52]} 6. O-O {[%clk 0:02:58.8]} 6... Be7 {[%clk 0:02:52.4]}
7. d4 {[%clk 0:02:58.8]} 7... cxd4 {[%clk 0:02:52.4]} 8. Nxd4 {[%clk 0:02:59.7]}
8... Bd7 {[%clk 0:02:53.1]} 9. Nde2 {[%clk 0:02:28.3]} 9... O-O {[%clk 0:02:51]}
10. b3 {[%clk 0:02:28.4]} 10... Rb8 {[%clk 0:02:50.6]} 11. a4 {[%clk 0:02:28.3]}
11... a6 {[%clk 0:02:46.3]} 12. Bb2 {[%clk 0:02:25.9]} 12... b5 {[%clk
0:02:45.3]} 13. axb5 {[%clk 0:02:26.8]} 13... axb5 {[%clk 0:02:46.2]} 14. h3
{[%clk 0:02:25.1]} 14... Qb6 {[%clk 0:02:44.6]} 15. Kh2 {[%clk 0:02:23.6]} 15...
Rfd8 {[%clk 0:02:33.7]} 16. f4 {[%clk 0:02:22.7]} 16... Be8 {[%clk 0:02:30.1]}
17. g4 {[%clk 0:01:51.7]} 17... d5 {[%clk 0:02:27.2]} 18. e5 {[%clk 0:01:48.1]}
18... Ne4 {[%clk 0:02:23.4]} 19. Nxe4 {[%clk 0:01:05.2]} 19... dxe4 {[%clk
0:02:24.3]} 20. Qe1 {[%clk 0:01:05.1]} 20... Nb4 {[%clk 0:02:08.9]} 21. Bxe4
{[%clk 0:00:57.3]} 21... Qe3 {[%clk 0:02:07.8]} 22. Nd4 {[%clk 0:00:44.8]} 22...
Qxe1 {[%clk 0:01:53.4]} 23. Rfxe1 {[%clk 0:00:45.5]} 23... Rbc8 {[%clk 0:01:52]}
24. Ra7 {[%clk 0:00:39.2]} 24... Bc5 {[%clk 0:01:49.6]} 0-1

[Event "*** Titled Tuesday Blitz"]
[Site "Chess.com"]
[Date "2020.04.14"]
[Round "7"]
[White "AlanZhang"]
[Black "Vojtastr"]
[Result "0-1"]
[WhiteElo "2186"]
[BlackElo "2485"]
[TimeControl "180+1"]
[EndTime "11:12:10 PDT"]
[Termination "Vojtastr won by checkmate"]

1. e4 {[%clk 0:03:00.9]} 1... c5 {[%clk 0:02:59.6]} 2. Nf3 {[%clk 0:03:01]} 2...
Nc6 {[%clk 0:02:59.9]} 3. d4 {[%clk 0:03:01.2]} 3... cxd4 {[%clk 0:03:00.3]} 4.
Nxd4 {[%clk 0:03:01.6]} 4... Nf6 {[%clk 0:03:01]} 5. Nc3 {[%clk 0:03:01.4]} 5...
e5 {[%clk 0:03:01.4]} 6. Ndb5 {[%clk 0:03:01.2]} 6... d6 {[%clk 0:03:01.6]} 7.
Bg5 {[%clk 0:03:00.5]} 7... a6 {[%clk 0:03:01.5]} 8. Na3 {[%clk 0:03:00.4]} 8...
b5 {[%clk 0:03:01.8]} 9. Nd5 {[%clk 0:03:00.7]} 9... Be7 {[%clk 0:03:01.3]} 10.
Bxf6 {[%clk 0:03:01.2]} 10... Bxf6 {[%clk 0:03:01.2]} 11. c4 {[%clk 0:03:01.8]}
11... b4 {[%clk 0:02:58.9]} 12. Nc2 {[%clk 0:03:01.9]} 12... O-O {[%clk
0:02:58.9]} 13. h4 {[%clk 0:03:01.4]} 13... a5 {[%clk 0:02:28.3]} 14. b3 {[%clk
0:03:00]} 14... Be6 {[%clk 0:02:16.9]} 15. g3 {[%clk 0:02:55.5]} 15... g6 {[%clk
0:02:11.5]} 16. Nxf6+ {[%clk 0:02:31.2]} 16... Qxf6 {[%clk 0:02:12.4]} 17. Qxd6
{[%clk 0:02:30.7]} 17... Rac8 {[%clk 0:02:12.6]} 18. Qd3 {[%clk 0:02:21.5]}
18... Rfd8 {[%clk 0:02:11.7]} 19. Qe3 {[%clk 0:02:21.5]} 19... Nd4 {[%clk
0:02:11.6]} 20. Nxd4 {[%clk 0:02:20.7]} 20... Rxd4 {[%clk 0:02:12.5]} 21. Bg2
{[%clk 0:02:13.6]} 21... Rcd8 {[%clk 0:02:03.5]} 22. O-O {[%clk 0:02:13.6]}
22... Bc8 {[%clk 0:01:55.8]} 23. Bf3 {[%clk 0:01:57.2]} 23... Rd3 {[%clk
0:01:55.2]} 24. Qc5 {[%clk 0:01:47.2]} 24... Qxf3 {[%clk 0:01:54.4]} 25. Kh2
{[%clk 0:01:46.5]} 25... Qxe4 {[%clk 0:01:45.5]} 26. Qxa5 {[%clk 0:01:43.7]}
26... Bb7 {[%clk 0:01:44.5]} 27. Rg1 {[%clk 0:01:39.7]} 27... Rd2 {[%clk
0:01:39.9]} 28. Raf1 {[%clk 0:01:39.4]} 28... Qd4 {[%clk 0:01:35.9]} 29. Qc7
{[%clk 0:00:50.3]} 29... Rxf2+ {[%clk 0:01:32.1]} 30. Kh3 {[%clk 0:00:50.5]}
30... Bc8+ {[%clk 0:01:26.6]} 31. g4 {[%clk 0:00:49.5]} 31... Rxf1 {[%clk
0:01:23.1]} 32. Rxf1 {[%clk 0:00:48.5]} 32... Qxg4+ {[%clk 0:01:23.1]} 33. Kh2
{[%clk 0:00:48.3]} 33... Rd2+ {[%clk 0:01:23.1]} 34. Kh1 {[%clk 0:00:48.7]}
34... Qg2# {[%clk 0:01:22.8]} 0-1

[Event "*** Titled Tuesday Blitz"]
[Site "Chess.com"]
[Date "2020.04.14"]
[Round "7"]
[White "Grandmaster2B"]
[Black "vasblesk"]
[Result "0-1"]
[WhiteElo "2526"]
[BlackElo "2390"]
[TimeControl "180+1"]
[EndTime "11:12:12 PDT"]
[Termination "vasblesk won by resignation"]

1. e4 {[%clk 0:03:00.9]} 1... Nf6 {[%clk 0:02:58.8]} 2. e5 {[%clk 0:02:58.6]}
2... Nd5 {[%clk 0:02:58.4]} 3. d4 {[%clk 0:02:58.8]} 3... d6 {[%clk 0:02:58.3]}
4. Nf3 {[%clk 0:02:59.3]} 4... dxe5 {[%clk 0:02:57.1]} 5. Nxe5 {[%clk
0:03:00.2]} 5... c6 {[%clk 0:02:57.1]} 6. c4 {[%clk 0:02:57.9]} 6... Nb4 {[%clk
0:02:55.3]} 7. Be3 {[%clk 0:02:51.1]} 7... Bf5 {[%clk 0:02:53.2]} 8. Nd3 {[%clk
0:02:48.3]} 8... e5 {[%clk 0:02:49.4]} 9. Nxb4 {[%clk 0:02:27.3]} 9... Bxb4+
{[%clk 0:02:35.7]} 10. Nc3 {[%clk 0:02:25.5]} 10... Qa5 {[%clk 0:02:18.2]} 11.
Qb3 {[%clk 0:01:42.3]} 11... Na6 {[%clk 0:02:16]} 12. a3 {[%clk 0:01:41.9]}
12... exd4 {[%clk 0:01:50]} 13. Bxd4 {[%clk 0:01:42.8]} 13... O-O-O {[%clk
0:01:48.8]} 14. O-O-O {[%clk 0:01:34]} 14... Nc5 {[%clk 0:01:11.6]} 15. Qa2
{[%clk 0:01:07.9]} 15... Rxd4 {[%clk 0:01:06.8]} 16. axb4 {[%clk 0:00:59.8]}
16... Nb3+ {[%clk 0:01:00.9]} 0-1

[Event "*** Titled Tuesday Blitz"]
[Site "Chess.com"]
[Date "2020.04.14"]
[Round "7"]
[White "Gerasimenyuk_Miha"]
[Black "Ovsiannikov_Maxim"]
[Result "1-0"]
[WhiteElo "2495"]
[BlackElo "2229"]
[TimeControl "180+1"]
[EndTime "11:12:13 PDT"]
[Termination "Gerasimenyuk_Miha won by checkmate"]

1. d4 {[%clk 0:02:57.7]} 1... d5 {[%clk 0:02:55]} 2. Nf3 {[%clk 0:02:57.7]} 2...
Nc6 {[%clk 0:02:51]} 3. Bg5 {[%clk 0:02:57.7]} 3... Bf5 {[%clk 0:02:50.8]} 4. e3
{[%clk 0:02:57.5]} 4... Nb4 {[%clk 0:02:50.4]} 5. Na3 {[%clk 0:02:54]} 5... h6
{[%clk 0:02:50.7]} 6. Bh4 {[%clk 0:02:51.1]} 6... Nf6 {[%clk 0:02:50.7]} 7. c3
{[%clk 0:02:47.5]} 7... Nc6 {[%clk 0:02:39.7]} 8. Bb5 {[%clk 0:02:45]} 8... a6
{[%clk 0:02:28]} 9. Bxc6+ {[%clk 0:02:44.1]} 9... bxc6 {[%clk 0:02:26.9]} 10.
Ne5 {[%clk 0:02:42.5]} 10... Qd6 {[%clk 0:02:22.7]} 11. Bg3 {[%clk 0:02:36.1]}
11... Qe6 {[%clk 0:02:14]} 12. Qa4 {[%clk 0:02:32.8]} 12... Ne4 {[%clk
0:02:05.3]} 13. O-O {[%clk 0:02:22.8]} 13... g5 {[%clk 0:01:49.9]} 14. Nxc6
{[%clk 0:02:20.2]} 14... Qd7 {[%clk 0:01:46.7]} 15. c4 {[%clk 0:02:14.5]} 15...
Nxg3 {[%clk 0:01:40.1]} 16. fxg3 {[%clk 0:02:09.9]} 16... Bd3 {[%clk 0:01:40.6]}
17. Rxf7 {[%clk 0:01:53.2]} 17... dxc4 {[%clk 0:01:31]} 18. Nxc4 {[%clk
0:01:39.8]} 18... Be4 {[%clk 0:01:24.1]} 19. N4e5 {[%clk 0:01:33.4]} 19... Bxc6
{[%clk 0:01:24.1]} 20. Nxc6 {[%clk 0:01:33.4]} 20... Rb8 {[%clk 0:01:18.4]} 21.
Qc4 {[%clk 0:01:27.6]} 21... Rb6 {[%clk 0:01:17.4]} 22. Ne5 {[%clk 0:01:25.3]}
22... Qb5 {[%clk 0:01:14.4]} 23. Qxc7 {[%clk 0:01:13]} 23... Rb8 {[%clk
0:01:00]} 24. Rc1 {[%clk 0:01:05]} 24... Bg7 {[%clk 0:00:49.3]} 25. Qc8+ {[%clk
0:01:04.2]} 25... Rxc8 {[%clk 0:00:47.1]} 26. Rxc8# {[%clk 0:01:05.1]} 1-0

[Event "*** Titled Tuesday Blitz"]
[Site "Chess.com"]
[Date "2020.04.14"]
[Round "7"]
[White "ZiggyStardust64"]
[Black "MartinMatthiesen"]
[Result "1-0"]
[WhiteElo "2601"]
[BlackElo "2422"]
[TimeControl "180+1"]
[EndTime "11:12:16 PDT"]
[Termination "ZiggyStardust64 won by resignation"]

1. e4 {[%clk 0:03:00.9]} 1... c5 {[%clk 0:02:59.5]} 2. Nf3 {[%clk 0:03:00.9]}
2... d6 {[%clk 0:02:59.8]} 3. d4 {[%clk 0:03:01.2]} 3... cxd4 {[%clk 0:03:00]}
4. Nxd4 {[%clk 0:03:02.1]} 4... Nf6 {[%clk 0:03:00.3]} 5. Nc3 {[%clk 0:03:02.7]}
5... a6 {[%clk 0:03:00.6]} 6. h4 {[%clk 0:03:03.1]} 6... e5 {[%clk 0:02:57]} 7.
Nb3 {[%clk 0:03:03.1]} 7... Be7 {[%clk 0:02:55.9]} 8. Be2 {[%clk 0:03:02.2]}
8... O-O {[%clk 0:02:55.3]} 9. g4 {[%clk 0:03:01.4]} 9... Be6 {[%clk 0:02:40.7]}
10. g5 {[%clk 0:03:01]} 10... Nfd7 {[%clk 0:02:37.3]} 11. Be3 {[%clk 0:03:01.6]}
11... Nc6 {[%clk 0:02:31.2]} 12. Nd5 {[%clk 0:03:01.3]} 12... f5 {[%clk
0:02:16.5]} 13. f3 {[%clk 0:02:50.4]} 13... Rc8 {[%clk 0:01:22.8]} 14. Qd2
{[%clk 0:02:49.1]} 14... Bxd5 {[%clk 0:01:13.5]} 15. exd5 {[%clk 0:02:39.6]}
15... Ncb8 {[%clk 0:00:47.2]} 16. f4 {[%clk 0:02:39.8]} 16... exf4 {[%clk
0:00:39.1]} 17. Bxf4 {[%clk 0:02:38.2]} 17... Ne5 {[%clk 0:00:35.3]} 18. Nd4
{[%clk 0:02:37.8]} 18... Qb6 {[%clk 0:00:27.2]} 19. O-O-O {[%clk 0:02:34.9]}
19... Nbd7 {[%clk 0:00:22.2]} 20. Ne6 {[%clk 0:02:32.5]} 20... Rf7 {[%clk
0:00:19.8]} 21. g6 {[%clk 0:02:22.4]} 21... hxg6 {[%clk 0:00:19]} 22. h5 {[%clk
0:02:22.7]} 22... g5 {[%clk 0:00:15.6]} 23. Bxg5 {[%clk 0:02:12.1]} 23... Nc5
{[%clk 0:00:14.9]} 24. Bxe7 {[%clk 0:01:57]} 24... Rxe7 {[%clk 0:00:15.1]} 25.
h6 {[%clk 0:01:56.9]} 25... Na4 {[%clk 0:00:14.2]} 26. Qd4 {[%clk 0:01:44.9]}
26... Qxd4 {[%clk 0:00:13.5]} 27. Rxd4 {[%clk 0:01:45.8]} 27... g6 {[%clk
0:00:14]} 28. Rxa4 {[%clk 0:01:45]} 1-0

[Event "*** Titled Tuesday Blitz"]
[Site "Chess.com"]
[Date "2020.04.14"]
[Round "7"]
[White "Zaven_ChessMood"]
[Black "Grischuk"]
[Result "1/2-1/2"]
[WhiteElo "2919"]
[BlackElo "3091"]
[TimeControl "180+1"]
[EndTime "11:12:17 PDT"]
[Termination "Game drawn by agreement"]

1. e4 {[%clk 0:03:00.9]} 1... c5 {[%clk 0:02:59.7]} 2. Nc3 {[%clk 0:03:00.5]}
2... Nc6 {[%clk 0:02:59.5]} 3. Bb5 {[%clk 0:03:00]} 3... Nd4 {[%clk 0:02:58.8]}
4. Nf3 {[%clk 0:02:59]} 4... g6 {[%clk 0:02:37.3]} 5. Nxd4 {[%clk 0:02:58.3]}
5... cxd4 {[%clk 0:02:37.8]} 6. Ne2 {[%clk 0:02:59.2]} 6... Nf6 {[%clk
0:02:32.9]} 7. Bd3 {[%clk 0:02:55.2]} 7... d5 {[%clk 0:02:29.4]} 8. e5 {[%clk
0:02:52.6]} 8... Ng4 {[%clk 0:02:23.4]} 9. f4 {[%clk 0:02:50.1]} 9... Qb6 {[%clk
0:02:18.6]} 10. O-O {[%clk 0:02:42.4]} 10... Bf5 {[%clk 0:01:53]} 11. h3 {[%clk
0:02:39.3]} 11... Nh6 {[%clk 0:01:49.1]} 12. b3 {[%clk 0:02:37.6]} 12... Bxd3
{[%clk 0:01:29.6]} 13. cxd3 {[%clk 0:02:38.5]} 13... Nf5 {[%clk 0:01:29.6]} 14.
g4 {[%clk 0:02:37.7]} 14... Ng7 {[%clk 0:01:29.7]} 15. Bb2 {[%clk 0:02:34.1]}
15... Ne6 {[%clk 0:01:25.7]} 16. Rc1 {[%clk 0:02:31.1]} 16... h5 {[%clk
0:01:19.7]} 17. Qe1 {[%clk 0:02:30.5]} 17... hxg4 {[%clk 0:01:19.3]} 18. hxg4
{[%clk 0:02:29.8]} 18... Rh3 {[%clk 0:01:16.2]} 19. Kg2 {[%clk 0:02:26.3]} 19...
Rxd3 {[%clk 0:01:15.4]} 20. Rh1 {[%clk 0:02:17]} 20... Bg7 {[%clk 0:01:10.1]}
21. Rc2 {[%clk 0:02:14.1]} 21... g5 {[%clk 0:01:03.8]} 22. fxg5 {[%clk 0:02:05]}
22... Bxe5 {[%clk 0:01:01]} 23. Qf2 {[%clk 0:02:02.6]} 23... Qa5 {[%clk
0:00:36.2]} 24. Qf5 {[%clk 0:01:57.2]} 24... Rxd2 {[%clk 0:00:35.3]} 25. Rxd2
{[%clk 0:01:56]} 25... Qxd2 {[%clk 0:00:36.2]} 26. Qxe5 {[%clk 0:01:56]} 26...
Nf4+ {[%clk 0:00:21.9]} 27. Qxf4 {[%clk 0:01:56]} 27... Qxe2+ {[%clk 0:00:22.1]}
28. Qf2 {[%clk 0:01:56.2]} 28... Qxg4+ {[%clk 0:00:21.8]} 29. Qg3 {[%clk
0:01:56.5]} 29... Qe2+ {[%clk 0:00:22]} 30. Qf2 {[%clk 0:01:56.7]} 30... Qg4+
{[%clk 0:00:22.3]} 31. Qg3 {[%clk 0:01:44.3]} 31... Qe2+ {[%clk 0:00:22.4]} 32.
Qf2 {[%clk 0:01:44.3]} 1/2-1/2

[Event "*** Titled Tuesday Blitz"]
[Site "Chess.com"]
[Date "2020.04.14"]
[Round "7"]
[White "TigrVShlyape"]
[Black "Jadro9"]
[Result "1-0"]
[WhiteElo "2865"]
[BlackElo "2706"]
[TimeControl "180+1"]
[EndTime "11:12:17 PDT"]
[Termination "TigrVShlyape won by resignation"]

1. d4 {[%clk 0:03:00.9]} 1... d5 {[%clk 0:02:59.5]} 2. Nf3 {[%clk 0:03:00.4]}
2... Nf6 {[%clk 0:02:59.4]} 3. Bf4 {[%clk 0:02:58.7]} 3... c5 {[%clk 0:02:59.4]}
4. e3 {[%clk 0:02:58.8]} 4... Nc6 {[%clk 0:02:59.8]} 5. Nbd2 {[%clk 0:02:57.9]}
5... cxd4 {[%clk 0:03:00.3]} 6. exd4 {[%clk 0:02:58.1]} 6... Bf5 {[%clk
0:03:00.9]} 7. c3 {[%clk 0:02:57.8]} 7... e6 {[%clk 0:03:01.3]} 8. Be2 {[%clk
0:02:55.9]} 8... Bd6 {[%clk 0:03:01.5]} 9. Bxd6 {[%clk 0:02:54.7]} 9... Qxd6
{[%clk 0:03:02.2]} 10. O-O {[%clk 0:02:55]} 10... O-O {[%clk 0:03:02.8]} 11. Re1
{[%clk 0:02:54.9]} 11... Rab8 {[%clk 0:03:02.7]} 12. a4 {[%clk 0:02:54.9]} 12...
h6 {[%clk 0:02:47.3]} 13. Qb3 {[%clk 0:02:52.2]} 13... Qc7 {[%clk 0:02:40.4]}
14. Bf1 {[%clk 0:02:49.3]} 14... a6 {[%clk 0:02:39.5]} 15. Ne5 {[%clk
0:02:47.4]} 15... Nd7 {[%clk 0:02:31.2]} 16. Nxd7 {[%clk 0:02:45.9]} 16... Qxd7
{[%clk 0:02:31]} 17. a5 {[%clk 0:02:46.1]} 17... Qc7 {[%clk 0:02:30.9]} 18. Qa3
{[%clk 0:02:45.9]} 18... Rfd8 {[%clk 0:02:12.6]} 19. Nb3 {[%clk 0:02:38.5]}
19... Kh8 {[%clk 0:02:12.8]} 20. Nc5 {[%clk 0:02:36]} 20... e5 {[%clk
0:02:09.8]} 21. dxe5 {[%clk 0:02:34.2]} 21... Nxe5 {[%clk 0:02:09]} 22. Rad1
{[%clk 0:02:14.1]} 22... Rbc8 {[%clk 0:01:49.1]} 23. b4 {[%clk 0:02:11.4]} 23...
Ng4 {[%clk 0:01:43.2]} 24. g3 {[%clk 0:02:10.5]} 24... Nf6 {[%clk 0:01:43.5]}
25. c4 {[%clk 0:02:02.6]} 25... dxc4 {[%clk 0:01:40.6]} 26. Bxc4 {[%clk
0:01:47.4]} 26... Bg4 {[%clk 0:01:34.6]} 27. Rxd8+ {[%clk 0:01:42.5]} 27... Rxd8
{[%clk 0:01:35.1]} 28. Bf1 {[%clk 0:01:39.7]} 28... Nd7 {[%clk 0:01:04.3]} 29.
Bg2 {[%clk 0:01:13.3]} 29... Nxc5 {[%clk 0:00:58.1]} 30. bxc5 {[%clk 0:01:12.9]}
30... Be6 {[%clk 0:00:58.5]} 31. Qb4 {[%clk 0:01:07.5]} 31... Bd5 {[%clk
0:00:58.5]} 32. Bxd5 {[%clk 0:01:06.7]} 1-0

[Event "*** Titled Tuesday Blitz"]
[Site "Chess.com"]
[Date "2020.04.14"]
[Round "7"]
[White "flomarechot"]
[Black "Nikolaj_6"]
[Result "0-1"]
[WhiteElo "2168"]
[BlackElo "2570"]
[TimeControl "180+1"]
[EndTime "11:12:17 PDT"]
[Termination "Nikolaj_6 won on time"]

1. d4 {[%clk 0:03:00.9]} 1... Nf6 {[%clk 0:02:59.4]} 2. c4 {[%clk 0:03:00.7]}
2... c5 {[%clk 0:02:59.6]} 3. d5 {[%clk 0:02:59.8]} 3... e6 {[%clk 0:02:59.9]}
4. Nc3 {[%clk 0:02:58.8]} 4... exd5 {[%clk 0:03:00]} 5. cxd5 {[%clk 0:02:58.2]}
5... d6 {[%clk 0:03:00.4]} 6. Bg5 {[%clk 0:02:53.9]} 6... a6 {[%clk 0:02:59.7]}
7. e4 {[%clk 0:02:54.1]} 7... Nbd7 {[%clk 0:02:59]} 8. Qc2 {[%clk 0:02:45.9]}
8... Be7 {[%clk 0:02:58.3]} 9. Bd3 {[%clk 0:02:40.8]} 9... b5 {[%clk 0:02:56.5]}
10. Be3 {[%clk 0:02:28.6]} 10... O-O {[%clk 0:02:54]} 11. Nge2 {[%clk
0:02:26.4]} 11... c4 {[%clk 0:02:53.3]} 12. O-O {[%clk 0:02:20.4]} 12... cxd3
{[%clk 0:02:53.3]} 13. Qxd3 {[%clk 0:02:20.5]} 13... Ne5 {[%clk 0:02:53.3]} 14.
Qc2 {[%clk 0:02:16.4]} 14... Nc4 {[%clk 0:02:52.8]} 15. Bc1 {[%clk 0:02:07.1]}
15... Re8 {[%clk 0:02:50.9]} 16. b3 {[%clk 0:02:07.1]} 16... Ne5 {[%clk
0:02:50.6]} 17. f3 {[%clk 0:01:50.2]} 17... Bf8 {[%clk 0:02:47.4]} 18. Be3
{[%clk 0:01:49.4]} 18... Ng6 {[%clk 0:02:44.5]} 19. Ng3 {[%clk 0:01:40.5]} 19...
b4 {[%clk 0:02:41.9]} 20. Nce2 {[%clk 0:01:30.6]} 20... Nxd5 {[%clk 0:02:40.2]}
21. Bd4 {[%clk 0:01:12.3]} 21... Ndf4 {[%clk 0:02:35.8]} 22. Rad1 {[%clk
0:00:44.2]} 22... Nxe2+ {[%clk 0:02:30.9]} 23. Nxe2 {[%clk 0:00:34.3]} 23... a5
{[%clk 0:02:30.2]} 24. Bf2 {[%clk 0:00:18]} 24... Ba6 {[%clk 0:02:27.8]} 25. Nd4
{[%clk 0:00:17.8]} 25... Bxf1 {[%clk 0:02:26.1]} 26. Rxf1 {[%clk 0:00:17.8]}
26... Qd7 {[%clk 0:02:24.3]} 27. Qd3 {[%clk 0:00:15]} 27... d5 {[%clk
0:02:22.6]} 28. Nf5 {[%clk 0:00:13.5]} 28... Rad8 {[%clk 0:02:19.5]} 29. Qe3
{[%clk 0:00:09.6]} 29... dxe4 {[%clk 0:02:17.1]} 30. fxe4 {[%clk 0:00:10]} 30...
Ne5 {[%clk 0:02:15.3]} 31. Qg5 {[%clk 0:00:05.8]} 31... g6 {[%clk 0:02:09.3]}
32. Nh6+ {[%clk 0:00:03.7]} 32... Bxh6 {[%clk 0:02:08.4]} 33. Qxh6 {[%clk
0:00:03.1]} 33... Ng4 {[%clk 0:02:07.9]} 0-1